[Event "FIDE World Rapid Chess Championship 2021"]
[White "Martirosyan, Haik M."]
[Black "Bartel, Mateusz"]
[WhiteFideId "13306553"]
[BlackFideId "1112635"]
[WhiteElo "2377"]
[BlackElo "2543"]
[Result "1-0"]
[Round "10"]
[TimeControl "900+10"]
[Date "2021.12.28"]
[WhiteClock "0:00:20"]
[BlackClock "0:02:14"]

1. d4 {[%clk 0:15:00]}  d5 {[%clk 0:15:00]} 2. c4 {[%clk 0:15:00]}  e6 {[%clk 0:15:00]} 3. Nf3 {[%clk 0:15:00]}  Nf6 {[%clk 0:15:01]} 4. Nc3 {[%clk 0:15:42]}  Nbd7 {[%clk 0:15:01]} 5. cxd5 {[%clk 0:15:42]}  exd5 {[%clk 0:15:01]} 6. Bg5 {[%clk 0:15:42]}  c6 {[%clk 0:15:01]} 7. Qc2 {[%clk 0:15:42]}  Be7 {[%clk 0:15:01]} 8. e3 {[%clk 0:15:42]}  Nh5 {[%clk 0:15:01]} 9. Bxe7 {[%clk 0:15:42]}  Qxe7 {[%clk 0:15:01]} 10. O-O-O {[%clk 0:15:42]}  Nb6 {[%clk 0:15:01]} 11. Bd3 {[%clk 0:15:42]}  Be6 {[%clk 0:15:01]} 12. Kb1 {[%clk 0:14:26]}  O-O-O {[%clk 0:14:53]} 13. Rc1 {[%clk 0:14:26]}  Kb8 {[%clk 0:14:53]} 14. Na4 {[%clk 0:14:26]}  Nf6 {[%clk 0:14:53]} 15. Nc5 {[%clk 0:14:26]}  Bc8 {[%clk 0:14:53]} 16. Qb3 {[%clk 0:14:00]}  Nfd7 {[%clk 0:10:55]} 17. Rc3 {[%clk 0:12:15]}  Ka8 {[%clk 0:10:55]} 18. Rhc1 {[%clk 0:10:55]}  g5 {[%clk 0:10:55]} 19. Qc2 {[%clk 0:10:29]}  g4 {[%clk 0:09:51]} 20. Nd2 {[%clk 0:10:29]}  Nxc5 {[%clk 0:09:51]} 21. Rxc5 {[%clk 0:08:04]}  h5 {[%clk 0:09:02]} 22. a4 {[%clk 0:04:28]}  Nd7 {[%clk 0:09:04]} 23. Rc3 {[%clk 0:04:28]}  Nb8 {[%clk 0:09:04]} 24. a5 {[%clk 0:04:28]}  a6 {[%clk 0:09:04]} 25. Nb3 {[%clk 0:04:28]}  Qc7 {[%clk 0:09:04]} 26. g3 {[%clk 0:04:22]}  h4 {[%clk 0:07:28]} 27. Qd2 {[%clk 0:04:22]}  hxg3 {[%clk 0:07:28]} 28. hxg3 {[%clk 0:04:22]}  Rh2 {[%clk 0:07:28]} 29. R3c2 {[%clk 0:04:22]}  Rd6 {[%clk 0:07:28]} 30. Nc5 {[%clk 0:04:22]}  Rf6 {[%clk 0:07:28]} 31. Qe1 {[%clk 0:04:22]}  Bf5 {[%clk 0:06:55]} 32. Bxf5 {[%clk 0:03:42]}  Rxf5 {[%clk 0:06:55]} 33. Nd3 {[%clk 0:03:42]}  Rfh5 {[%clk 0:06:55]} 34. Nf4 {[%clk 0:03:42]}  Rg5 {[%clk 0:06:55]} 35. Qb4 {[%clk 0:03:42]}  Rh8 {[%clk 0:03:48]} 36. Rc3 {[%clk 0:03:09]}  Rc8 {[%clk 0:03:48]} 37. Rb3 {[%clk 0:03:09]}  Re8 {[%clk 0:03:48]} 38. Rh1 {[%clk 0:02:01]}  Nd7 {[%clk 0:02:32]} 39. Rh6 {[%clk 0:02:01]}  Rf5 {[%clk 0:02:32]} 40. Rc3 {[%clk 0:00:59]}  Nf6 {[%clk 0:01:49]} 41. Rxf6 {[%clk 0:00:59]}  Rxf6 {[%clk 0:01:49]} 42. Nxd5 {[%clk 0:00:59]}  Qd8 {[%clk 0:01:49]} 43. Rb3 {[%clk 0:00:59]}  b5 {[%clk 0:01:49]} 44. Nxf6 {[%clk 0:00:59]}  Qxf6 {[%clk 0:01:49]} 45. Qc5 {[%clk 0:00:59]}  Rh8 {[%clk 0:01:49]} 46. Rc3 {[%clk 0:00:59]}  Rh1+ {[%clk 0:01:49]} 47. Ka2 {[%clk 0:00:59]}  Qe6+ {[%clk 0:01:49]} 48. b3 {[%clk 0:00:59]}  Rf1 {[%clk 0:01:49]} 49. Rc2 {[%clk 0:00:59]}  Qd5 {[%clk 0:01:49]} 50. Qb6 {[%clk 0:00:59]}  Qh1 {[%clk 0:01:49]} 51. Qxa6+ {[%clk 0:00:59]}  Kb8 {[%clk 0:01:49]} 52. Qb6+ {[%clk 0:00:59]}  Ka8 {[%clk 0:01:49]} 53. Qxc6+ {[%clk 0:00:59]}  Qxc6 {[%clk 0:02:57]} 54. Rxc6 {[%clk 0:00:43]}  Rxf2+ {[%clk 0:02:57]} 55. Ka3 {[%clk 0:00:43]}  Rf3 {[%clk 0:02:57]} 56. Kb4 {[%clk 0:00:43]}  Rxg3 {[%clk 0:02:57]} 57. Kxb5 {[%clk 0:00:43]}  Rxe3 {[%clk 0:02:57]} 58. b4 {[%clk 0:00:43]}  g3 {[%clk 0:02:57]} 59. Rc8+ {[%clk 0:00:43]}  Kb7 {[%clk 0:02:57]} 60. Rg8 {[%clk 0:00:43]}  f5 {[%clk 0:02:57]} 61. a6+ {[%clk 0:00:43]}  Ka7 {[%clk 0:02:57]} 62. Rg7+ {[%clk 0:00:43]}  Ka8 {[%clk 0:02:57]} 63. d5 {[%clk 0:00:43]}  f4 {[%clk 0:02:57]} 64. d6 {[%clk 0:00:43]}  Re8 {[%clk 0:02:57]} 65. d7 {[%clk 0:00:43]}  Rf8 {[%clk 0:02:57]} 66. Kc6 {[%clk 0:00:43]}  f3 {[%clk 0:02:57]} 67. Rxg3 {[%clk 0:00:43]}  Ka7 {[%clk 0:02:57]} 68. Rxf3 {[%clk 0:00:20]}  Rc8+ {[%clk 0:02:14]} 1-0


[Site "http://www.Chess.com"]

[Event "FIDE World Rapid Chess Championship 2021"]
[White "Sankalp, Gupta"]
[Black "Harikrishna, Pentala"]
[WhiteFideId "5097010"]
[BlackFideId "5007003"]
[WhiteElo "2266"]
[BlackElo "2705"]
[Result "1-0"]
[Round "10"]
[TimeControl "900+10"]
[Date "2021.12.28"]
[WhiteClock "0:01:14"]
[BlackClock "0:00:21"]

1. d4 {[%clk 0:15:00]}  Nf6 {[%clk 0:15:00]} 2. Nf3 {[%clk 0:15:00]}  d5 {[%clk 0:15:00]} 3. c3 {[%clk 0:15:00]}  Bf5 {[%clk 0:14:26]} 4. Qb3 {[%clk 0:15:52]}  Qc8 {[%clk 0:14:26]} 5. c4 {[%clk 0:15:52]}  e6 {[%clk 0:14:26]} 6. Nc3 {[%clk 0:15:52]}  dxc4 {[%clk 0:14:26]} 7. Qxc4 {[%clk 0:15:52]}  a6 {[%clk 0:14:26]} 8. g3 {[%clk 0:15:52]}  b5 {[%clk 0:13:42]} 9. Qb3 {[%clk 0:13:37]}  c5 {[%clk 0:13:42]} 10. Bg2 {[%clk 0:13:37]}  Nc6 {[%clk 0:13:42]} 11. dxc5 {[%clk 0:13:03]}  Bxc5 {[%clk 0:12:51]} 12. O-O {[%clk 0:09:26]}  O-O {[%clk 0:12:50]} 13. Bg5 {[%clk 0:09:26]}  Na5 {[%clk 0:12:50]} 14. Qd1 {[%clk 0:09:26]}  b4 {[%clk 0:12:50]} 15. Nb1 {[%clk 0:09:26]}  Rd8 {[%clk 0:12:50]} 16. Nbd2 {[%clk 0:09:26]}  Nc4 {[%clk 0:08:14]} 17. Rc1 {[%clk 0:09:51]}  Nxd2 {[%clk 0:08:14]} 18. Nxd2 {[%clk 0:09:51]}  Ra7 {[%clk 0:08:14]} 19. Qa4 {[%clk 0:09:54]}  Rc7 {[%clk 0:06:45]} 20. Nb3 {[%clk 0:09:54]}  h6 {[%clk 0:05:47]} 21. Bf4 {[%clk 0:07:09]}  e5 {[%clk 0:05:47]} 22. Bxe5 {[%clk 0:04:34]}  Bxf2+ {[%clk 0:05:47]} 23. Kxf2 {[%clk 0:04:34]}  Ng4+ {[%clk 0:05:47]} 24. Kg1 {[%clk 0:04:34]}  Rxc1 {[%clk 0:05:56]} 25. Rxc1 {[%clk 0:04:25]}  Qe6 {[%clk 0:01:43]} 26. Qa5 {[%clk 0:04:25]}  Re8 {[%clk 0:01:43]} 27. Bd4 {[%clk 0:04:25]}  Qg6 {[%clk 0:01:43]} 28. Qb6 {[%clk 0:02:10]}  Qg5 {[%clk 0:01:42]} 29. Re1 {[%clk 0:01:01]}  Be4 {[%clk 0:00:38]} 30. Bxe4 {[%clk 0:01:01]}  Rxe4 {[%clk 0:00:38]} 31. Qc5 {[%clk 0:01:01]}  f5 {[%clk 0:00:21]} 32. e3 {[%clk 0:01:14]}  Qh5 {[%clk 0:00:21]} 33. Qc2 {[%clk 0:01:14]}  Kh7 {[%clk 0:00:21]} 34. Nc5 {[%clk 0:01:14]}  Re7 {[%clk 0:00:21]} 35. Rf1 {[%clk 0:01:14]}  g6 {[%clk 0:00:21]} 36. Nd3 {[%clk 0:01:14]}  Rc7 {[%clk 0:00:21]} 37. Qxc7+ {[%clk 0:01:14]} 1-0


[Site "http://www.Chess.com"]

[Event "FIDE World Rapid Chess Championship 2021"]
[White "Yuffa, Daniil"]
[Black "Oparin, Grigoriy"]
[WhiteFideId "24131423"]
[BlackFideId "24125890"]
[WhiteElo "2514"]
[BlackElo "2725"]
[Result "1-0"]
[Round "10"]
[TimeControl "900+10"]
[Date "2021.12.28"]
[WhiteClock "0:00:05"]
[BlackClock "0:00:30"]

1. d4 {[%clk 0:15:00]}  Nf6 {[%clk 0:15:00]} 2. c4 {[%clk 0:15:00]}  e6 {[%clk 0:15:00]} 3. g3 {[%clk 0:15:00]}  d5 {[%clk 0:15:42]} 4. Bg2 {[%clk 0:14:52]}  dxc4 {[%clk 0:15:42]} 5. Nf3 {[%clk 0:14:52]}  Bb4+ {[%clk 0:15:42]} 6. Bd2 {[%clk 0:14:52]}  a5 {[%clk 0:15:42]} 7. O-O {[%clk 0:14:52]}  O-O {[%clk 0:15:42]} 8. Qc2 {[%clk 0:14:52]}  b5 {[%clk 0:15:42]} 9. a4 {[%clk 0:14:52]}  Bxd2 {[%clk 0:15:42]} 10. Nfxd2 {[%clk 0:14:52]}  Ra7 {[%clk 0:15:42]} 11. axb5 {[%clk 0:14:46]}  Qxd4 {[%clk 0:15:42]} 12. Nxc4 {[%clk 0:14:44]}  Bd7 {[%clk 0:06:51]} 13. Qb3 {[%clk 0:12:33]}  Qc5 {[%clk 0:06:51]} 14. Nc3 {[%clk 0:11:09]}  Nd5 {[%clk 0:05:59]} 15. Nxd5 {[%clk 0:09:41]}  exd5 {[%clk 0:06:07]} 16. Na3 {[%clk 0:09:41]}  Be6 {[%clk 0:06:15]} 17. Rac1 {[%clk 0:05:21]}  Qb4 {[%clk 0:06:15]} 18. Qxb4 {[%clk 0:05:21]}  axb4 {[%clk 0:06:15]} 19. Nc2 {[%clk 0:05:21]}  c5 {[%clk 0:06:15]} 20. Ne3 {[%clk 0:05:23]}  d4 {[%clk 0:04:33]} 21. Nd5 {[%clk 0:05:23]}  Nd7 {[%clk 0:04:33]} 22. b6 {[%clk 0:05:23]}  Ra2 {[%clk 0:04:33]} 23. b7 {[%clk 0:03:10]}  Rb8 {[%clk 0:04:22]} 24. Nxb4 {[%clk 0:02:56]}  Ra4 {[%clk 0:02:47]} 25. Nd3 {[%clk 0:01:44]}  Rc4 {[%clk 0:00:36]} 26. Rxc4 {[%clk 0:01:44]}  Bxc4 {[%clk 0:00:36]} 27. Ra1 {[%clk 0:01:44]}  Kf8 {[%clk 0:00:36]} 28. Ra8 {[%clk 0:01:44]}  Bxd3 {[%clk 0:00:47]} 29. exd3 {[%clk 0:01:23]}  Ke7 {[%clk 0:00:47]} 30. Bc6 {[%clk 0:01:23]}  Kd6 {[%clk 0:00:47]} 31. Bxd7 {[%clk 0:01:23]}  Rxb7 {[%clk 0:00:47]} 32. Bc8 {[%clk 0:01:23]}  Rxb2 {[%clk 0:00:47]} 33. Ra1 {[%clk 0:00:30]}  c4 {[%clk 0:00:30]} 34. dxc4 {[%clk 0:00:30]}  Kc5 {[%clk 0:00:30]} 35. Bg4 {[%clk 0:00:30]}  g6 {[%clk 0:00:30]} 36. Ra7 {[%clk 0:00:30]}  f5 {[%clk 0:00:30]} 37. Bf3 {[%clk 0:00:30]}  d3 {[%clk 0:00:30]} 38. Rxh7 {[%clk 0:00:30]}  Kxc4 {[%clk 0:00:30]} 39. h4 {[%clk 0:00:30]}  Rb6 {[%clk 0:00:30]} 40. Rc7+ {[%clk 0:00:30]}  Kd4 {[%clk 0:00:30]} 41. Rc6 {[%clk 0:00:05]} 1-0


[Site "http://www.Chess.com"]

[Event "FIDE World Rapid Chess Championship 2021"]
[White "Nguyen, Thai Dai Van"]
[Black "Antipov, Mikhail Al."]
[WhiteFideId "358878"]
[BlackFideId "4107012"]
[WhiteElo "2488"]
[BlackElo "2644"]
[Result "0-1"]
[Round "10"]
[TimeControl "900+10"]
[Date "2021.12.28"]
[WhiteClock "0:00:31"]
[BlackClock "0:02:04"]

1. d4 {[%clk 0:15:00]}  Nf6 {[%clk 0:15:00]} 2. c4 {[%clk 0:15:00]}  g6 {[%clk 0:15:00]} 3. Nc3 {[%clk 0:14:57]}  d5 {[%clk 0:15:09]} 4. cxd5 {[%clk 0:14:57]}  Nxd5 {[%clk 0:15:09]} 5. Bd2 {[%clk 0:14:57]}  c5 {[%clk 0:15:09]} 6. Rc1 {[%clk 0:14:57]}  Nc6 {[%clk 0:15:09]} 7. dxc5 {[%clk 0:14:57]}  Bg7 {[%clk 0:15:09]} 8. e4 {[%clk 0:14:57]}  Ndb4 {[%clk 0:15:09]} 9. a3 {[%clk 0:13:43]}  Nd3+ {[%clk 0:11:14]} 10. Bxd3 {[%clk 0:13:43]}  Qxd3 {[%clk 0:11:14]} 11. Nge2 {[%clk 0:13:43]}  Bg4 {[%clk 0:11:14]} 12. f3 {[%clk 0:13:43]}  Be6 {[%clk 0:11:14]} 13. Nf4 {[%clk 0:13:43]}  Qd7 {[%clk 0:11:14]} 14. Nxe6 {[%clk 0:13:43]}  Qxe6 {[%clk 0:11:14]} 15. Nd5 {[%clk 0:13:09]}  Rc8 {[%clk 0:08:15]} 16. Bc3 {[%clk 0:09:58]}  Bxc3+ {[%clk 0:08:19]} 17. Rxc3 {[%clk 0:09:58]}  Qe5 {[%clk 0:08:19]} 18. O-O {[%clk 0:09:58]}  e6 {[%clk 0:08:19]} 19. Nb4 {[%clk 0:09:58]}  O-O {[%clk 0:07:54]} 20. Qd6 {[%clk 0:07:50]}  Qf6 {[%clk 0:07:54]} 21. Nxc6 {[%clk 0:06:17]}  bxc6 {[%clk 0:07:39]} 22. Qd2 {[%clk 0:05:07]}  Rfd8 {[%clk 0:05:46]} 23. Qe3 {[%clk 0:05:07]}  a5 {[%clk 0:05:32]} 24. h3 {[%clk 0:03:34]}  Rd4 {[%clk 0:05:32]} 25. e5 {[%clk 0:01:52]}  Qd8 {[%clk 0:03:34]} 26. b3 {[%clk 0:01:52]}  Qd5 {[%clk 0:03:34]} 27. Kh2 {[%clk 0:01:52]}  Rd8 {[%clk 0:03:34]} 28. Rf2 {[%clk 0:01:52]}  Rd1 {[%clk 0:03:34]} 29. b4 {[%clk 0:01:52]}  axb4 {[%clk 0:02:40]} 30. axb4 {[%clk 0:01:17]}  Rb1 {[%clk 0:02:40]} 31. Rcc2 {[%clk 0:01:17]}  Rxb4 {[%clk 0:02:40]} 32. Rfd2 {[%clk 0:01:17]}  Rd4 {[%clk 0:02:40]} 33. Rxd4 {[%clk 0:01:17]}  Qxd4 {[%clk 0:02:40]} 34. Qg5 {[%clk 0:01:17]}  h6 {[%clk 0:02:40]} 35. Qf6 {[%clk 0:00:17]}  Ra8 {[%clk 0:02:58]} 36. Rc1 {[%clk 0:00:17]}  Rb8 {[%clk 0:02:04]} 37. Rc2 {[%clk 0:00:31]}  Qe3 {[%clk 0:02:04]} 38. h4 {[%clk 0:00:31]}  Qd4 {[%clk 0:02:04]} 39. Kg3 {[%clk 0:00:31]}  Ra8 {[%clk 0:02:04]} 40. h5 {[%clk 0:00:31]}  g5 {[%clk 0:02:04]} 41. f4 {[%clk 0:00:31]}  Qd3+ {[%clk 0:02:04]} 42. Kh2 {[%clk 0:00:31]}  Qxc2 {[%clk 0:02:04]} 43. fxg5 {[%clk 0:00:31]}  Qf5 {[%clk 0:02:04]} 44. Qxh6 {[%clk 0:00:31]}  Qxe5+ {[%clk 0:02:04]} 0-1


[Site "http://www.Chess.com"]

[Event "FIDE World Rapid Chess Championship 2021"]
[White "Sjugirov, Sanan"]
[Black "Michalik, Peter"]
[WhiteFideId "4189302"]
[BlackFideId "14907526"]
[WhiteElo "2634"]
[BlackElo "2515"]
[Result "1-0"]
[Round "10"]
[TimeControl "900+10"]
[Date "2021.12.28"]
[WhiteClock "0:00:44"]
[BlackClock "0:00:22"]

1. e4 {[%clk 0:15:00]}  e5 {[%clk 0:15:00]} 2. Nf3 {[%clk 0:15:00]}  Nc6 {[%clk 0:15:00]} 3. Bc4 {[%clk 0:15:00]}  Bc5 {[%clk 0:15:00]} 4. d3 {[%clk 0:15:00]}  Nf6 {[%clk 0:15:00]} 5. Nbd2 {[%clk 0:15:00]}  O-O {[%clk 0:15:36]} 6. O-O {[%clk 0:14:58]}  h6 {[%clk 0:15:36]} 7. h3 {[%clk 0:14:58]}  Re8 {[%clk 0:15:36]} 8. c3 {[%clk 0:14:58]}  a6 {[%clk 0:13:12]} 9. Re1 {[%clk 0:14:46]}  d6 {[%clk 0:13:12]} 10. a4 {[%clk 0:14:46]}  Be6 {[%clk 0:13:12]} 11. b4 {[%clk 0:14:46]}  Bxc4 {[%clk 0:12:33]} 12. Nxc4 {[%clk 0:13:02]}  Ba7 {[%clk 0:12:33]} 13. Be3 {[%clk 0:11:11]}  Bxe3 {[%clk 0:12:33]} 14. Nxe3 {[%clk 0:11:11]}  a5 {[%clk 0:12:33]} 15. b5 {[%clk 0:11:11]}  Ne7 {[%clk 0:12:33]} 16. c4 {[%clk 0:11:19]}  Ng6 {[%clk 0:10:22]} 17. Nf5 {[%clk 0:11:19]}  Qd7 {[%clk 0:10:22]} 18. Rc1 {[%clk 0:09:47]}  c5 {[%clk 0:08:57]} 19. bxc6 {[%clk 0:09:47]}  bxc6 {[%clk 0:08:57]} 20. c5 {[%clk 0:09:47]}  d5 {[%clk 0:08:57]} 21. Nd6 {[%clk 0:05:39]}  Re7 {[%clk 0:07:41]} 22. Rb1 {[%clk 0:05:39]}  Ne8 {[%clk 0:07:41]} 23. Nf5 {[%clk 0:05:39]}  Re6 {[%clk 0:07:41]} 24. Qb3 {[%clk 0:05:39]}  Rd8 {[%clk 0:06:05]} 25. Qc3 {[%clk 0:05:09]}  Ra8 {[%clk 0:06:05]} 26. g3 {[%clk 0:04:20]}  d4 {[%clk 0:02:08]} 27. Qc4 {[%clk 0:03:47]}  Ne7 {[%clk 0:02:08]} 28. Rb6 {[%clk 0:03:47]}  Kh7 {[%clk 0:02:08]} 29. N5h4 {[%clk 0:02:22]}  Nc8 {[%clk 0:01:20]} 30. Rb2 {[%clk 0:02:22]}  g6 {[%clk 0:01:20]} 31. Reb1 {[%clk 0:02:22]}  Ra7 {[%clk 0:01:20]} 32. Rb8 {[%clk 0:02:22]}  Re7 {[%clk 0:01:20]} 33. Kg2 {[%clk 0:02:22]}  Kg7 {[%clk 0:01:20]} 34. Nd2 {[%clk 0:01:47]}  Nc7 {[%clk 0:00:57]} 35. R1b7 {[%clk 0:01:24]}  Rxb7 {[%clk 0:00:25]} 36. Rxb7 {[%clk 0:01:24]}  Qd8 {[%clk 0:00:25]} 37. Nhf3 {[%clk 0:01:24]}  f6 {[%clk 0:00:25]} 38. Nb3 {[%clk 0:01:24]}  Ne6 {[%clk 0:00:25]} 39. Rxe7+ {[%clk 0:01:24]}  Qxe7 {[%clk 0:00:25]} 40. Nxa5 {[%clk 0:01:24]}  Nxc5 {[%clk 0:00:25]} 41. Nxc6 {[%clk 0:01:24]}  Qd6 {[%clk 0:00:25]} 42. Nd8 {[%clk 0:01:24]}  Qxd8 {[%clk 0:00:25]} 43. Qxc5 {[%clk 0:01:24]}  Nd6 {[%clk 0:00:16]} 44. a5 {[%clk 0:01:21]}  Qd7 {[%clk 0:00:16]} 45. a6 {[%clk 0:01:21]}  Nc8 {[%clk 0:00:16]} 46. Nd2 {[%clk 0:01:21]}  Na7 {[%clk 0:00:16]} 47. Nc4 {[%clk 0:01:21]}  h5 {[%clk 0:00:16]} 48. Nb6 {[%clk 0:01:21]}  Qd8 {[%clk 0:00:16]} 49. Nd5 {[%clk 0:01:21]}  Qd7 {[%clk 0:00:16]} 50. Qb6 {[%clk 0:00:44]}  Qf7 {[%clk 0:00:22]} 51. Nc7 {[%clk 0:00:44]}  Nc8 {[%clk 0:00:22]} 52. Qb7 {[%clk 0:00:44]} 1-0


[Site "http://www.Chess.com"]

[Event "FIDE World Rapid Chess Championship 2021"]
[White "Janik, Igor"]
[Black "Halkias, Stelios"]
[WhiteFideId "1159259"]
[BlackFideId "4201809"]
[WhiteElo "2462"]
[BlackElo "2576"]
[Result "0-1"]
[Round "10"]
[TimeControl "900+10"]
[Date "2021.12.28"]
[WhiteClock "0:00:17"]
[BlackClock "0:00:40"]

1. d4 {[%clk 0:15:00]}  Nf6 {[%clk 0:15:00]} 2. c4 {[%clk 0:15:00]}  g6 {[%clk 0:15:00]} 3. g3 {[%clk 0:15:00]}  Bg7 {[%clk 0:15:21]} 4. Bg2 {[%clk 0:16:13]}  c5 {[%clk 0:15:21]} 5. d5 {[%clk 0:16:13]}  O-O {[%clk 0:15:21]} 6. Nc3 {[%clk 0:16:13]}  e6 {[%clk 0:15:21]} 7. Nf3 {[%clk 0:16:13]}  exd5 {[%clk 0:15:21]} 8. cxd5 {[%clk 0:16:13]}  d6 {[%clk 0:15:21]} 9. O-O {[%clk 0:16:13]}  Re8 {[%clk 0:15:21]} 10. Re1 {[%clk 0:16:13]}  a6 {[%clk 0:15:21]} 11. a4 {[%clk 0:16:13]}  h6 {[%clk 0:15:21]} 12. Nd2 {[%clk 0:15:35]}  Nbd7 {[%clk 0:12:57]} 13. h3 {[%clk 0:15:35]}  Rb8 {[%clk 0:12:57]} 14. Nc4 {[%clk 0:15:35]}  Ne5 {[%clk 0:12:57]} 15. Nxe5 {[%clk 0:15:35]}  Rxe5 {[%clk 0:12:57]} 16. e4 {[%clk 0:15:35]}  Re8 {[%clk 0:12:57]} 17. Bf4 {[%clk 0:15:07]}  Nh5 {[%clk 0:12:02]} 18. Be3 {[%clk 0:15:07]}  b5 {[%clk 0:12:02]} 19. axb5 {[%clk 0:15:07]}  axb5 {[%clk 0:12:02]} 20. Qd2 {[%clk 0:15:07]}  b4 {[%clk 0:09:47]} 21. Ne2 {[%clk 0:15:33]}  Nf6 {[%clk 0:07:51]} 22. Bxh6 {[%clk 0:14:43]}  Nxe4 {[%clk 0:07:51]} 23. Bxe4 {[%clk 0:14:43]}  Rxe4 {[%clk 0:07:51]} 24. Bxg7 {[%clk 0:14:43]}  Kxg7 {[%clk 0:07:51]} 25. Nf4 {[%clk 0:13:14]}  Rxe1+ {[%clk 0:07:14]} 26. Rxe1 {[%clk 0:13:14]}  Bd7 {[%clk 0:07:14]} 27. Re4 {[%clk 0:12:52]}  Qf6 {[%clk 0:06:19]} 28. Qe2 {[%clk 0:12:52]}  Bb5 {[%clk 0:06:19]} 29. Qg4 {[%clk 0:12:52]}  Rh8 {[%clk 0:04:39]} 30. b3 {[%clk 0:11:27]}  Ba6 {[%clk 0:03:30]} 31. h4 {[%clk 0:09:50]}  Bc8 {[%clk 0:03:30]} 32. Qe2 {[%clk 0:09:50]}  Bf5 {[%clk 0:03:30]} 33. Re7 {[%clk 0:09:50]}  Ra8 {[%clk 0:03:30]} 34. Kg2 {[%clk 0:08:23]}  Kf8 {[%clk 0:02:34]} 35. Re3 {[%clk 0:08:23]}  Bd7 {[%clk 0:02:34]} 36. h5 {[%clk 0:06:26]}  g5 {[%clk 0:02:03]} 37. Ne6+ {[%clk 0:06:26]}  Kg8 {[%clk 0:00:54]} 38. Nc7 {[%clk 0:05:12]}  Ra1 {[%clk 0:00:54]} 39. Ne8 {[%clk 0:05:12]}  Qf5 {[%clk 0:00:42]} 40. g4 {[%clk 0:03:57]}  Qb1 {[%clk 0:00:42]} 41. f4 {[%clk 0:00:17]}  Qh1+ {[%clk 0:00:40]} 42. Kf2 {[%clk 0:00:17]}  Qg1+ {[%clk 0:00:40]} 43. Kf3 {[%clk 0:00:17]}  Bxg4+ {[%clk 0:00:40]} 0-1


[Site "http://www.Chess.com"]

[Event "FIDE World Rapid Chess Championship 2021"]
[White "Sadhwani, Raunak"]
[Black "Ter-Sahakyan, Samvel"]
[WhiteFideId "35093487"]
[BlackFideId "13302531"]
[WhiteElo "2454"]
[BlackElo "2573"]
[Result "1/2-1/2"]
[Round "10"]
[TimeControl "900+10"]
[Date "2021.12.28"]
[WhiteClock "0:00:00"]
[BlackClock "0:00:00"]

1. c4 {[%clk 0:15:00]}  e5 {[%clk 0:15:00]} 2. g3 {[%clk 0:15:00]}  c6 {[%clk 0:15:00]} 3. Nf3 {[%clk 0:15:00]}  e4 {[%clk 0:15:00]} 4. Nd4 {[%clk 0:15:00]}  d5 {[%clk 0:15:26]} 5. cxd5 {[%clk 0:15:41]}  Qxd5 {[%clk 0:15:26]} 6. Nc2 {[%clk 0:15:41]}  Nf6 {[%clk 0:15:26]} 7. Nc3 {[%clk 0:15:41]}  Qe5 {[%clk 0:15:26]} 8. Bg2 {[%clk 0:15:41]}  Na6 {[%clk 0:15:26]} 9. Ne3 {[%clk 0:15:41]}  Be7 {[%clk 0:12:20]} 10. Qc2 {[%clk 0:15:46]}  Nc5 {[%clk 0:12:20]} 11. b4 {[%clk 0:15:46]}  Ne6 {[%clk 0:12:20]} 12. Bb2 {[%clk 0:15:46]}  Nd4 {[%clk 0:12:20]} 13. Qb1 {[%clk 0:15:46]}  Qh5 {[%clk 0:11:20]} 14. h3 {[%clk 0:14:22]}  Bxb4 {[%clk 0:07:41]} 15. g4 {[%clk 0:14:25]}  Qe5 {[%clk 0:07:41]} 16. Nxe4 {[%clk 0:14:25]}  Nxe4 {[%clk 0:07:41]} 17. Qxe4 {[%clk 0:14:25]}  Qxe4 {[%clk 0:07:41]} 18. Bxe4 {[%clk 0:14:25]}  Ne6 {[%clk 0:07:41]} 19. a3 {[%clk 0:13:38]}  Ba5 {[%clk 0:06:33]} 20. f4 {[%clk 0:13:38]}  O-O {[%clk 0:05:47]} 21. f5 {[%clk 0:11:43]}  Nc5 {[%clk 0:05:47]} 22. Bc2 {[%clk 0:11:43]}  Re8 {[%clk 0:05:47]} 23. Nc4 {[%clk 0:11:42]}  Bc7 {[%clk 0:04:34]} 24. d4 {[%clk 0:11:42]}  Ne4 {[%clk 0:04:34]} 25. Bxe4 {[%clk 0:10:10]}  Rxe4 {[%clk 0:04:32]} 26. Kf2 {[%clk 0:10:10]}  f6 {[%clk 0:02:42]} 27. Nd2 {[%clk 0:07:04]}  Re7 {[%clk 0:02:42]} 28. e4 {[%clk 0:07:04]}  Bd7 {[%clk 0:02:42]} 29. Kf3 {[%clk 0:07:04]}  Rae8 {[%clk 0:02:42]} 30. Bc3 {[%clk 0:07:04]}  g6 {[%clk 0:02:42]} 31. Rhg1 {[%clk 0:06:40]}  a5 {[%clk 0:01:31]} 32. a4 {[%clk 0:06:40]}  Kf7 {[%clk 0:01:31]} 33. Rab1 {[%clk 0:06:06]}  gxf5 {[%clk 0:00:47]} 34. gxf5 {[%clk 0:06:06]}  Bxf5 {[%clk 0:00:47]} 35. Rxb7 {[%clk 0:06:06]}  Bg6 {[%clk 0:00:47]} 36. Rf1 {[%clk 0:06:06]}  Bh5+ {[%clk 0:00:42]} 37. Ke3 {[%clk 0:03:18]}  Rg8 {[%clk 0:00:42]} 38. Kd3 {[%clk 0:03:18]}  Rg3+ {[%clk 0:00:42]} 39. Kc2 {[%clk 0:03:18]}  Bg6 {[%clk 0:00:42]} 40. Kb2 {[%clk 0:03:18]}  Bd6 {[%clk 0:00:00]} 41. Rxe7+ {[%clk 0:02:09]}  Kxe7 {[%clk 0:00:00]} 42. Bxa5 {[%clk 0:02:09]}  c5 {[%clk 0:00:00]} 43. Bc3 {[%clk 0:00:00]}  cxd4 {[%clk 0:00:00]} 44. Bxd4 {[%clk 0:00:00]}  Rxh3 {[%clk 0:00:00]} 45. Bxf6+ {[%clk 0:00:00]}  Kd7 {[%clk 0:00:00]} 46. Bc3 {[%clk 0:00:00]}  Rh2 {[%clk 0:00:00]} 47. Kb3 {[%clk 0:00:00]}  Rh3 {[%clk 0:00:00]} 48. Kc4 {[%clk 0:00:00]}  Bh5 {[%clk 0:00:00]} 49. Rf2 {[%clk 0:00:00]}  Rh2 {[%clk 0:00:00]} 50. Rf6 {[%clk 0:00:00]}  Rh3 {[%clk 0:00:00]} 51. Bd4 {[%clk 0:00:00]}  Be7 {[%clk 0:00:00]} 52. Rf2 {[%clk 0:00:00]}  Ra3 {[%clk 0:00:00]} 53. Kb5 {[%clk 0:00:00]}  Be8 {[%clk 0:00:00]} 54. a5 {[%clk 0:00:00]}  Ke6+ {[%clk 0:00:00]} 55. Ka6 {[%clk 0:00:00]}  Ra4 {[%clk 0:00:00]} 56. Bb6 {[%clk 0:00:00]}  Bc6 {[%clk 0:00:00]} 57. Rh2 {[%clk 0:00:00]}  Ra2 {[%clk 0:00:00]} 58. Rh6+ {[%clk 0:00:00]}  Kd7 {[%clk 0:00:00]} 59. Nc4 {[%clk 0:00:00]}  Bxe4 {[%clk 0:00:00]} 60. Ne5+ {[%clk 0:00:00]}  Ke8 {[%clk 0:00:00]} 61. Rh3 {[%clk 0:00:00]}  Bg5 {[%clk 0:00:00]} 62. Rg3 {[%clk 0:00:00]}  h6 {[%clk 0:00:00]} 63. Rc3 {[%clk 0:00:00]}  Ke7 {[%clk 0:00:00]} 64. Nf3 {[%clk 0:00:00]}  Ke6 {[%clk 0:00:00]} 65. Nd4+ {[%clk 0:00:00]}  Kd6 {[%clk 0:00:00]} 66. Nb5+ {[%clk 0:00:00]}  Ke6 {[%clk 0:00:00]} 67. Ka7 {[%clk 0:00:00]}  Bd2 {[%clk 0:00:01]} 68. Nc7+ {[%clk 0:00:00]}  Kf5 {[%clk 0:00:01]} 69. Rc5+ {[%clk 0:00:00]}  Kg4 {[%clk 0:00:01]} 70. a6 {[%clk 0:00:00]}  h5 {[%clk 0:00:01]} 71. Rc4 {[%clk 0:00:00]}  Kf3 {[%clk 0:00:01]} 72. Nb5 {[%clk 0:00:00]}  Bd3 {[%clk 0:00:01]} 73. Rc5 {[%clk 0:00:00]}  h4 {[%clk 0:00:01]} 74. Rd5 {[%clk 0:00:00]}  Be4 {[%clk 0:00:01]} 75. Nd4+ {[%clk 0:00:00]}  Kg4 {[%clk 0:00:01]} 76. Rd8 {[%clk 0:00:00]}  h3 {[%clk 0:00:03]} 77. Rg8+ {[%clk 0:00:00]}  Kh5 {[%clk 0:00:03]} 78. Rh8+ {[%clk 0:00:00]}  Kg4 {[%clk 0:00:03]} 79. Rg8+ {[%clk 0:00:00]}  Kh5 {[%clk 0:00:03]} 80. Rh8+ {[%clk 0:00:00]}  Kg4 {[%clk 0:00:03]} 81. Rg8+ {[%clk 0:00:00]}  Kh5 {[%clk 0:00:03]} 82. Rh8+ {[%clk 0:00:00]}  Bh6 {[%clk 0:00:03]} 83. Nb5 {[%clk 0:00:00]}  Bd3 {[%clk 0:00:03]} 84. Be3 {[%clk 0:00:00]}  Bxb5 {[%clk 0:00:00]} 85. Rxh6+ {[%clk 0:00:00]}  Kg4 {[%clk 0:00:00]} 86. Bg1 {[%clk 0:00:00]}  Bd3 {[%clk 0:00:00]} 87. Kb7 {[%clk 0:00:00]}  Kg3 {[%clk 0:00:00]} 88. Bd4 {[%clk 0:00:00]}  Kg2 {[%clk 0:00:00]} 89. Be5 {[%clk 0:00:00]}  Rxa6 {[%clk 0:00:00]} 1/2-1/2


[Site "http://www.Chess.com"]